{"text_format":"3","workbook":"xlsx","n_sheets":7,"sheets":["Понедельник","Вторник","Среда","Четверг","Пятница","Суббота","Воскресенье"],"not_rendered":{"defined_names":21},"read":"whole","date_system":"1900"}

{"sheet":"Понедельник","index":0,"n_rows":10,"n_cols":13,"rows_kept":10,"merged":[[1,1,1,4],[1,8,1,9],[1,10,1,12],[2,1,2,4],[2,8,2,9],[2,10,2,12]]}
[]
[null,"РАСПИСАНИЕ СМЕН",{"$nulls":6},"Неделя: ",null,"Дата"]
[null,"Понедельник",{"$nulls":6},"Название отдела: ",null,"Название"]
[]
[null,"Сотрудник","7:00","8:00","9:00","10:00","11:00","12:00","13:00","14:00","15:00","Больничный?","Итого"]
[null,"Имя 1","Руководитель","Руководитель","Руководитель","Руководитель","Руководитель","Руководитель","Руководитель","Руководитель","Руководитель",null,{"$f":"COUNTIF(Понедельник[[#This Row],[7:00]:[15:00]],\"*\")","v":9}]
[null,"Имя 2",null,"Кассир","Кассир","Кассир","Кассир",{"$nulls":5},{"$f":"COUNTIF(Понедельник[[#This Row],[7:00]:[15:00]],\"*\")","v":4}]
[null,"Имя 3",null,"Приемная","Приемная","Приемная","Приемная","Приемная","Приемная","Приемная",null,null,{"$f":"COUNTIF(Понедельник[[#This Row],[7:00]:[15:00]],\"*\")","v":7}]
[null,"Имя 4",null,"Приемная","Приемная","Приемная","Приемная","Приемная","Приемная","Приемная",null,null,{"$f":"COUNTIF(Понедельник[[#This Row],[7:00]:[15:00]],\"*\")","v":7}]
[null,"Имя 5",{"$nulls":9},"Больничный",{"$f":"COUNTIF(Понедельник[[#This Row],[7:00]:[15:00]],\"*\")","v":0}]

{"sheet":"Вторник","index":1,"n_rows":10,"n_cols":13,"rows_kept":10,"merged":[[1,1,1,4],[1,8,1,9],[1,10,1,12],[2,1,2,4],[2,8,2,9],[2,10,2,12]]}
[]
[null,"РАСПИСАНИЕ СМЕН",{"$nulls":6},"Неделя: ",null,"Дата"]
[null,"Вторник",{"$nulls":6},"Название отдела: ",null,"Название"]
[]
[null,"Сотрудник","7:00","8:00","9:00","10:00","11:00","12:00","13:00","14:00","15:00","Больничный?","Итого"]
[null,"Имя 1","Руководитель","Руководитель","Руководитель","Руководитель","Руководитель","Руководитель","Руководитель","Руководитель","Руководитель",null,{"$f":"COUNTIF(Вторник[[#This Row],[7:00]:[15:00]],\"*\")","v":9}]
[null,"Имя 2",null,"Кассир","Кассир","Кассир","Кассир",{"$nulls":5},{"$f":"COUNTIF(Вторник[[#This Row],[7:00]:[15:00]],\"*\")","v":4}]
[null,"Имя 3",null,"Приемная","Приемная","Приемная","Приемная","Приемная","Приемная","Приемная",null,null,{"$f":"COUNTIF(Вторник[[#This Row],[7:00]:[15:00]],\"*\")","v":7}]
[null,"Имя 4",null,"Приемная","Приемная","Приемная","Приемная","Приемная","Приемная","Приемная",null,null,{"$f":"COUNTIF(Вторник[[#This Row],[7:00]:[15:00]],\"*\")","v":7}]
[null,"Имя 5",{"$nulls":9},"Больничный",{"$f":"COUNTIF(Вторник[[#This Row],[7:00]:[15:00]],\"*\")","v":0}]

{"sheet":"Среда","index":2,"n_rows":10,"n_cols":13,"rows_kept":10,"merged":[[1,1,1,4],[1,8,1,9],[1,10,1,12],[2,1,2,4],[2,8,2,9],[2,10,2,12]]}
[]
[null,"РАСПИСАНИЕ СМЕН",{"$nulls":6},"Неделя: ",null,"Дата"]
[null,"Среда",{"$nulls":6},"Название отдела: ",null,"Название"]
[]
[null,"Сотрудник","7:00","8:00","9:00","10:00","11:00","12:00","13:00","14:00","15:00","Больничный?","Итого"]
[null,"Имя 1","Руководитель","Руководитель","Руководитель","Руководитель","Руководитель","Руководитель","Руководитель","Руководитель","Руководитель",null,{"$f":"COUNTIF(Среда[[#This Row],[7:00]:[15:00]],\"*\")","v":9}]
[null,"Имя 2",null,"Кассир","Кассир","Кассир","Кассир",{"$nulls":5},{"$f":"COUNTIF(Среда[[#This Row],[7:00]:[15:00]],\"*\")","v":4}]
[null,"Имя 3",null,"Приемная","Приемная","Приемная","Приемная","Приемная","Приемная","Приемная",null,null,{"$f":"COUNTIF(Среда[[#This Row],[7:00]:[15:00]],\"*\")","v":7}]
[null,"Имя 4",null,"Приемная","Приемная","Приемная","Приемная","Приемная","Приемная","Приемная",null,null,{"$f":"COUNTIF(Среда[[#This Row],[7:00]:[15:00]],\"*\")","v":7}]
[null,"Имя 5",{"$nulls":9},"Больничный",{"$f":"COUNTIF(Среда[[#This Row],[7:00]:[15:00]],\"*\")","v":0}]

{"sheet":"Четверг","index":3,"n_rows":10,"n_cols":13,"rows_kept":10,"merged":[[1,1,1,4],[1,8,1,9],[1,10,1,12],[2,1,2,4],[2,8,2,9],[2,10,2,12]]}
[]
[null,"РАСПИСАНИЕ СМЕН",{"$nulls":6},"Неделя: ",null,"Дата"]
[null,"Четверг",{"$nulls":6},"Название отдела: ",null,"Название"]
[]
[null,"Сотрудник","7:00","8:00","9:00","10:00","11:00","12:00","13:00","14:00","15:00","Больничный?","Итого"]
[null,"Имя 1","Руководитель","Руководитель","Руководитель","Руководитель","Руководитель","Руководитель","Руководитель","Руководитель","Руководитель",null,{"$f":"COUNTIF(Четверг[[#This Row],[7:00]:[15:00]],\"*\")","v":9}]
[null,"Имя 2",null,"Кассир","Кассир","Кассир","Кассир",{"$nulls":5},{"$f":"COUNTIF(Четверг[[#This Row],[7:00]:[15:00]],\"*\")","v":4}]
[null,"Имя 3",null,"Приемная","Приемная","Приемная","Приемная","Приемная","Приемная","Приемная",null,null,{"$f":"COUNTIF(Четверг[[#This Row],[7:00]:[15:00]],\"*\")","v":7}]
[null,"Имя 4",null,"Приемная","Приемная","Приемная","Приемная","Приемная","Приемная","Приемная",null,null,{"$f":"COUNTIF(Четверг[[#This Row],[7:00]:[15:00]],\"*\")","v":7}]
[null,"Имя 5",{"$nulls":9},"Больничный",{"$f":"COUNTIF(Четверг[[#This Row],[7:00]:[15:00]],\"*\")","v":0}]

{"sheet":"Пятница","index":4,"n_rows":10,"n_cols":13,"rows_kept":10,"merged":[[1,1,1,4],[1,8,1,9],[1,10,1,12],[2,1,2,4],[2,8,2,9],[2,10,2,12]]}
[]
[null,"РАСПИСАНИЕ СМЕН",{"$nulls":6},"Неделя: ",null,"Дата"]
[null,"Пятница",{"$nulls":6},"Название отдела: ",null,"Название"]
[]
[null,"Сотрудник","7:00","8:00","9:00","10:00","11:00","12:00","13:00","14:00","15:00","Больничный?","Итого"]
[null,"Имя 1","Руководитель","Руководитель","Руководитель","Руководитель","Руководитель","Руководитель","Руководитель","Руководитель","Руководитель",null,{"$f":"COUNTIF(Пятница[[#This Row],[7:00]:[15:00]],\"*\")","v":9}]
[null,"Имя 2",null,"Кассир","Кассир","Кассир","Кассир",{"$nulls":5},{"$f":"COUNTIF(Пятница[[#This Row],[7:00]:[15:00]],\"*\")","v":4}]
[null,"Имя 3",null,"Приемная","Приемная","Приемная","Приемная","Приемная","Приемная","Приемная",null,null,{"$f":"COUNTIF(Пятница[[#This Row],[7:00]:[15:00]],\"*\")","v":7}]
[null,"Имя 4",null,"Приемная","Приемная","Приемная","Приемная","Приемная","Приемная","Приемная",null,null,{"$f":"COUNTIF(Пятница[[#This Row],[7:00]:[15:00]],\"*\")","v":7}]
[null,"Имя 5",{"$nulls":9},"Больничный",{"$f":"COUNTIF(Пятница[[#This Row],[7:00]:[15:00]],\"*\")","v":0}]

{"sheet":"Суббота","index":5,"n_rows":10,"n_cols":13,"rows_kept":10,"merged":[[1,1,1,4],[1,8,1,9],[1,10,1,12],[2,1,2,4],[2,8,2,9],[2,10,2,12]]}
[]
[null,"РАСПИСАНИЕ СМЕН",{"$nulls":6},"Неделя: ",null,"Дата"]
[null,"Суббота",{"$nulls":6},"Название отдела: ",null,"Название"]
[]
[null,"Сотрудник","7:00","8:00","9:00","10:00","11:00","12:00","13:00","14:00","15:00","Больничный?","Итого"]
[null,"Имя 1","Руководитель","Руководитель","Руководитель","Руководитель","Руководитель","Руководитель","Руководитель","Руководитель","Руководитель",null,{"$f":"COUNTIF(Суббота[[#This Row],[7:00]:[15:00]],\"*\")","v":9}]
[null,"Имя 2",null,"Кассир","Кассир","Кассир","Кассир",{"$nulls":5},{"$f":"COUNTIF(Суббота[[#This Row],[7:00]:[15:00]],\"*\")","v":4}]
[null,"Имя 3",null,"Приемная","Приемная","Приемная","Приемная","Приемная","Приемная","Приемная",null,null,{"$f":"COUNTIF(Суббота[[#This Row],[7:00]:[15:00]],\"*\")","v":7}]
[null,"Имя 4",null,"Приемная","Приемная","Приемная","Приемная","Приемная","Приемная","Приемная",null,null,{"$f":"COUNTIF(Суббота[[#This Row],[7:00]:[15:00]],\"*\")","v":7}]
[null,"Имя 5",{"$nulls":9},"Больничный",{"$f":"COUNTIF(Суббота[[#This Row],[7:00]:[15:00]],\"*\")","v":0}]

{"sheet":"Воскресенье","index":6,"n_rows":10,"n_cols":13,"rows_kept":10,"merged":[[1,1,1,4],[1,8,1,9],[1,10,1,12],[2,1,2,4],[2,8,2,9],[2,10,2,12]]}
[]
[null,"РАСПИСАНИЕ СМЕН",{"$nulls":6},"Неделя: ",null,"Дата"]
[null,"Воскресенье",{"$nulls":6},"Название отдела: ",null,"Название"]
[]
[null,"Сотрудник","7:00","8:00","9:00","10:00","11:00","12:00","13:00","14:00","15:00","Больничный?","Итого"]
[null,"Имя 1","Руководитель","Руководитель","Руководитель","Руководитель","Руководитель","Руководитель","Руководитель","Руководитель","Руководитель",null,{"$f":"COUNTIF(Воскресенье[[#This Row],[7:00]:[15:00]],\"*\")","v":9}]
[null,"Имя 2",null,"Кассир","Кассир","Кассир","Кассир",{"$nulls":5},{"$f":"COUNTIF(Воскресенье[[#This Row],[7:00]:[15:00]],\"*\")","v":4}]
[null,"Имя 3",null,"Приемная","Приемная","Приемная","Приемная","Приемная","Приемная","Приемная",null,null,{"$f":"COUNTIF(Воскресенье[[#This Row],[7:00]:[15:00]],\"*\")","v":7}]
[null,"Имя 4",null,"Приемная","Приемная","Приемная","Приемная","Приемная","Приемная","Приемная",null,null,{"$f":"COUNTIF(Воскресенье[[#This Row],[7:00]:[15:00]],\"*\")","v":7}]
[null,"Имя 5",{"$nulls":9},"Больничный",{"$f":"COUNTIF(Воскресенье[[#This Row],[7:00]:[15:00]],\"*\")","v":0}]